bitfinex/quotes_ETHUSD_20250913
["timestamp","ask_amount","ask_price","bid_price","bid_amount"]
[1757785878626,0.7855,4638.2,4637.8,3.586]
[1757785878828,0.77706513,4638.1,4637.8,3.586]
[1757785878988,0.1072,4638.3,4637.8,3.586]
[1757785879189,0.5794,4638.3,4637.8,3.586]
[1757785879394,0.1072,4638.3,4637.8,3.586]
[1757785881437,0.1072,4638.3,4638.2,0.3031]
[1757785882253,0.1072,4638.3,4637.9,0.9666]
[1757785884063,0.1072,4638.3,4637.9,3.12274702]
[1757785884335,0.1072,4638.3,4638.2,0.3031]
[1757785884839,0.1072,4638.3,4638.2,1.2697]
[1757785885006,0.1072,4638.3,4638.2,3.42570879]
[1757785885202,0.212,4638.8,4638.2,1.2697]
[1757785885203,0.12111653,4638.6,4638.2,1.2697]
[1757785885403,0.22831653,4638.7,4638.3,0.4965]
[1757785885632,0.12111653,4638.6,4638.3,0.4965]
[1757785886007,0.12111653,4638.6,4638.5,0.3031]
[1757785886207,0.12111653,4638.6,4638.1,5.74104439]
[1757785886407,0.12111653,4638.6,4638.2,2.15600521]
[1757785886607,0.12111653,4638.6,4638.2,3.12260521]
[1757785886809,0.12111653,4638.6,4638.3,0.9666]
[1757785887009,0.12111653,4638.6,4638.5,0.3031]
[1757785887432,0.12111653,4638.6,4638.5,1.2697]
[1757785889071,0.22831653,4638.7,4638.5,1.2697]
[1757785889360,0.22831653,4638.7,4638.5,0.3031]
[1757785889956,0.43441653,4638.6,4638.4,3.586]
[1757785890335,0.90661653,4638.6,4638.4,3.586]
[1757785890542,0.4722,4638.5,4638.1,0.792]
[1757785891229,0.12111653,4638.6,4638.1,2.94801214]
[1757785891636,0.12111653,4638.6,4638.2,0.4701]
[1757785892848,0.12111653,4638.6,4638.1,1.2885]
[1757785893044,0.12111653,4638.6,4638.2,0.4701]
[1757785895055,0.12111653,4638.6,4638.1,2.94805305]
[1757785895282,0.12111653,4638.6,4638.1,0.792]
[1757785895283,0.12111653,4638.5,4638.1,0.792]
[1757785895784,0.3133,4638.2,4638.0,3.585]
[1757785896565,0.1072,4638.4,4638.0,3.585]
[1757785897892,0.1072,4638.4,4637.9,2.15614516]
[1757785898094,0.3133,4638.0,4637.8,3.585]
[1757785898402,1.2749,4638.0,4637.8,0.001]
[1757785898559,2.46944728,4638.0,4637.8,0.001]
[1757785898756,0.9616,4637.9,4637.8,0.001]
[1757785898955,0.3133,4638.0,4637.8,0.001]
[1757785899172,0.3133,4637.9,4637.8,0.001]
[1757785902100,0.12111653,4638.2,4637.8,0.3041]
[1757785902309,0.12111653,4638.3,4637.8,0.3041]
[1757785902532,0.12111653,4638.2,4637.8,0.3041]
[1757785902894,0.12111653,4638.2,4637.8,0.001]
[1757785903094,0.59331653,4638.2,4637.8,0.001]
[1757785904043,2.74933151,4638.2,4637.8,0.001]
[1757785904213,0.29511938,4638.1,4637.8,0.001]
[1757785905441,0.3133,4637.9,4637.8,0.001]
[1757785907276,0.8124,4637.9,4637.8,0.001]
[1757785907574,1.2608,4637.9,4637.8,0.001]
[1757785908670,3.41694825,4637.9,4637.8,0.001]
[1757785908868,3.75864308,4637.9,4637.8,0.001]
[1757785909369,1.60249483,4637.9,4637.8,0.001]
[1757785910167,0.65499483,4637.9,4637.8,0.001]
[1757785910478,1.15409483,4637.9,4637.8,0.001]
[1757785910661,1.58239483,4637.9,4637.8,0.001]
[1757785911233,3.73854308,4637.9,4637.8,0.001]
[1757785911434,1.58239483,4637.9,4637.8,0.001]
[1757785914038,5.16639483,4637.9,4637.8,0.001]
[1757785914240,6.89424308,4637.9,4637.8,0.001]
[1757785914440,7.32254308,4637.9,4637.8,0.001]
[1757785916668,8.97654308,4637.9,4637.8,0.001]
[1757785923095,11.97654308,4637.9,4637.8,0.001]
[1757785923797,12.09742536,4637.9,4637.8,0.001]
[1757785924462,11.67012536,4637.9,4637.8,0.001]
[1757785924762,12.09842536,4637.9,4637.8,0.001]
[1757785926192,11.97754308,4637.9,4637.8,0.001]
[1757785928203,18.99754308,4637.9,4637.8,0.001]
[1757785930493,15.41254308,4637.9,4637.8,0.001]
[1757785930666,18.99754308,4637.9,4637.8,0.001]
[1757785931002,15.41254308,4637.9,4637.8,0.001]
[1757785931206,17.75684308,4637.9,4637.8,0.2937]
[1757785931366,14.75684308,4637.9,4637.8,1.1993]
[1757785931969,12.76114825,4637.9,4637.8,1.1993]
[1757785932202,9.17614825,4637.9,4637.8,1.1993]
[1757785932434,12.76114825,4637.9,4637.8,1.1993]
[1757785934613,13.07234825,4637.9,4637.8,0.001]
[1757785935115,9.17614825,4637.9,4637.8,0.001]
[1757785935284,14.05987102,4637.9,4637.8,0.001]
[1757785936227,14.36827102,4637.9,4637.8,0.001]
[1757785936610,14.83397102,4637.9,4637.8,0.001]
[1757785936786,15.30587102,4637.9,4637.8,0.001]
[1757785940228,15.42678878,4637.9,4637.8,0.001]
[1757785940891,14.48918878,4637.9,4637.8,0.001]
[1757785941824,10.90418878,4637.9,4637.8,0.001]
[1757785942027,14.48918878,4637.9,4637.8,0.001]
[1757785942637,10.59578878,4637.9,4637.8,0.7912]
[1757785942801,14.18078878,4637.9,4637.8,1.2259]
[1757785943136,14.18078878,4637.9,4637.8,0.3021]
[1757785943840,14.05987102,4637.9,4637.8,0.3021]
[1757785944050,14.36827102,4637.9,4637.8,0.001]
[1757785944209,14.48933345,4637.9,4637.8,0.001]
[1757785944535,15.42693345,4637.9,4637.8,0.001]
[1757785946229,15.62881855,4637.9,4637.8,0.001]
[1757785948153,15.62889339,4637.9,4637.8,0.001]
[1757785948634,14.69129339,4637.9,4637.8,0.001]
[1757785949553,15.62889339,4637.9,4637.8,0.001]
[1757785950443,15.16319339,4637.9,4637.8,0.001]
[1757785950644,14.69129339,4637.9,4637.8,0.001]
[1757785952155,14.69130217,4637.9,4637.8,0.001]
[1757785952461,14.38290217,4637.9,4637.8,0.001]
[1757785952652,10.79790217,4637.9,4637.8,0.7912]
[1757785952850,5.86228493,4637.9,4637.8,1.2259]
[1757785953015,5.74114825,4637.9,4637.8,1.2259]
[1757785953547,2.15614825,4637.9,4637.8,1.2259]
[1757785953746,5.74114825,4637.9,4637.8,1.2259]
[1757785955049,5.94303638,4637.9,4637.8,1.2259]
[1757785958649,5.94305597,4637.9,4637.8,1.2259]
[1757785964942,5.94305597,4637.9,4637.8,0.3021]
[1757785965678,2.35805597,4637.9,4637.8,0.3021]
[1757785965976,5.74114825,4637.9,4637.8,0.3021]
[1757785966166,6.03574825,4637.9,4637.8,0.001]
[1757785966362,6.3588097,4637.9,4637.8,0.001]
[1757785966576,7.37581283,4637.9,4637.8,0.001]
[1757785966762,8.31281283,4637.9,4637.8,0.001]
[1757785967371,7.81731283,4637.9,4637.8,0.001]
[1757785967664,7.37581283,4637.9,4637.8,0.001]
[1757785968260,8.31281283,4637.9,4637.8,0.001]
[1757785970578,7.37581283,4637.9,4637.8,0.001]
[1757785970978,7.37581916,4637.9,4637.8,0.001]
[1757785975193,7.82111916,4637.9,4637.8,0.001]
[1757785975387,8.31541916,4637.9,4637.8,0.001]
[1757785978089,7.37581916,4637.9,4637.8,0.001]
[1757785984707,7.37585213,4637.9,4637.8,0.001]
[1757785987173,6.06326322,4637.9,4637.8,1.2296]
[1757785987373,5.94210316,4637.9,4637.8,1.2296]
[1757785987578,2.35810316,4637.9,4637.8,1.2296]
[1757785987782,5.74014825,4637.9,4637.8,1.2296]
[1757785988273,5.94210316,4637.9,4637.8,1.2296]
[1757785989407,0.12116006,4638.0,4637.8,1.2296]
[1757785989707,0.12116006,4638.4,4637.9,0.9204]
[1757785989908,2.15604856,4638.2,4638.0,0.9204]
[1757785990213,0.1072,4638.0,4637.8,0.001]
[1757785990418,3.584,4637.9,4637.8,0.001]
[1757785990780,3.584,4637.9,4637.8,1.2296]
[1757785996182,5.74014825,4637.9,4637.8,1.2296]
[1757785996398,3.584,4637.9,4637.8,1.2296]
[1757785997334,2.26330888,4638.0,4637.8,1.2296]
[1757785997503,3.584,4637.9,4637.8,1.2296]
[1757785997703,3.584,4637.9,4637.8,0.7949]
[1757785997913,2.26330888,4638.0,4637.8,0.7949]
[1757785998114,3.584,4637.9,4637.8,0.7949]
[1757785998315,3.584,4637.9,4637.8,1.229]
[1757786002439,2.26331886,4638.0,4637.8,1.229]
[1757786002646,3.584,4637.9,4637.8,1.229]
[1757786002942,3.6902,4638.0,4637.8,1.229]
[1757786003110,3.6902,4638.0,4637.9,0.4341]
[1757786003310,3.6902,4638.0,4637.9,1.215]
[1757786004121,5.84630176,4638.0,4637.9,1.215]
[1757786004318,3.6902,4638.0,4637.9,1.215]
[1757786004643,3.583,4638.0,4637.9,1.215]
[1757786005028,2.15592448,4638.4,4637.9,1.215]
[1757786005213,0.002,4638.5,4638.0,0.9213]
[1757786005410,3.583,4638.3,4638.0,0.9213]
[1757786005628,0.1072,4638.0,4637.9,2.15614762]
[1757786005844,0.1072,4638.0,4637.9,2.44984762]
[1757786006053,0.1072,4638.3,4637.9,2.91055964]
[1757786006231,0.1072,4638.3,4638.0,0.9213]
[1757786006609,0.1072,4638.3,4638.2,0.2937]
[1757786007037,0.1072,4638.3,4638.2,1.215]
[1757786024153,0.1072,4638.3,4638.2,3.37100879]
[1757786024670,0.1072,4638.3,4638.2,4.28192383]
[1757786025380,0.1072,4638.3,4638.2,2.12591504]
[1757786026553,0.1072,4638.3,4638.2,4.28192383]
[1757786028679,0.1072,4638.3,4638.2,2.12591504]
[1757786029060,0.1072,4638.3,4638.2,4.28192383]
[1757786029784,0.002,4638.5,4638.4,2.15591583]
[1757786030108,0.002,4638.5,4638.4,6.38385585]
[1757786030286,0.002,4638.5,4638.4,7.61035585]
[1757786031190,0.002,4638.5,4638.4,11.40235585]
[1757786031494,0.002,4638.5,4638.4,11.50955585]
[1757786033895,0.002,4638.5,4638.4,11.71955585]
[1757786034610,0.21,4638.8,4638.7,2.9477764]
[1757786034810,0.21,4638.8,4638.7,11.1847764]
[1757786035026,0.21,4638.8,4638.7,12.4112764]
[1757786035304,2.36485879,4640.7,4638.8,3.792]
[1757786035305,0.6643,4640.7,4638.8,3.792]
[1757786035507,0.21,4640.7,4640.0,2.15513831]
[1757786035711,0.5457,4640.8,4640.1,5.73711913]
[1757786035874,1.0914,4640.8,4640.2,3.582]
[1757786036315,3.24620407,4640.8,4640.2,3.582]
[1757786036469,1.0914,4640.8,4640.2,3.582]
[1757786036675,1.67691437,4640.8,4640.2,3.582]
[1757786037006,3.83171973,4640.8,4640.2,3.582]
[1757786037215,1.67691437,4640.8,4640.2,3.582]
[1757786037415,0.08,4640.8,4640.2,5.73706158]
[1757786037713,0.08,4640.8,4640.2,3.582]
[1757786037909,0.08,4640.8,4640.3,2.15503257]
[1757786038099,0.08,4640.8,4640.2,3.582]
[1757786038406,0.08,4640.8,4640.3,3.86132718]
[1757786038909,0.08,4640.8,4640.6,2.1548739]
[1757786039116,0.08,4640.8,4640.7,3.586]
[1757786039624,0.08,4640.8,4640.7,4.6902]
[1757786039913,1.2998,4640.8,4640.7,3.585]
[1757786040324,3.45460089,4640.8,4640.7,3.585]
[1757786040521,4.01552732,4640.8,4640.7,3.585]
[1757786040669,1.86072643,4640.8,4640.7,3.585]
[1757786040985,3.45460089,4640.8,4640.7,3.585]
[1757786041185,2.15498081,4640.5,4639.8,0.792]
[1757786041404,2.15502792,4640.4,4639.6,1.654]
[1757786041726,0.92,4640.7,4639.8,3.0]
[1757786041915,0.2998,4639.9,4639.8,3.0]
[1757786042220,0.92,4640.6,4639.8,3.0]
[1757786042221,0.4657,4640.4,4639.8,3.0]
[1757786042722,0.4657,4640.4,4639.7,3.59]
[1757786042723,0.2998,4639.9,4639.7,3.792]
[1757786042899,0.2998,4639.9,4639.8,3.59]
[1757786043109,0.7541,4639.9,4639.8,3.59]
[1757786043420,0.2998,4639.9,4639.8,3.59]
[1757786045625,0.7541,4639.9,4639.6,1.654]
[1757786045937,0.92,4639.8,4639.7,3.591]
[1757786046142,1.2198,4639.8,4639.7,3.591]
[1757786046299,0.7655,4639.8,4639.7,3.591]
[1757786046851,2.23484135,4640.8,4639.7,3.591]
[1757786046852,0.4543,4640.4,4639.7,3.591]
[1757786047137,2.80174578,4640.3,4639.7,3.591]
[1757786047341,2.15516364,4640.1,4639.7,3.591]
[1757786047837,0.1072,4639.8,4639.7,3.591]
[1757786048243,2.80175255,4640.3,4639.7,3.591]
[1757786048244,2.15512701,4640.1,4639.7,4.8175]
[1757786048415,0.1072,4640.0,4639.7,4.8175]
[1757786048738,0.1072,4640.0,4639.7,4.3557]
[1757786048918,0.1072,4640.0,4639.7,3.9032]
[1757786049118,0.1072,4640.0,4639.8,0.4618]
[1757786049434,0.1072,4640.0,4639.8,0.9143]
[1757786049639,0.1072,4640.0,4639.9,0.7647]
[1757786050333,0.1072,4640.0,4639.9,0.3122]
[1757786050744,2.26237241,4640.0,4639.9,0.3122]
[1757786051047,0.1072,4640.0,4639.7,3.591]
[1757786051602,2.15522004,4639.9,4639.7,3.591]
[1757786052038,2.15522004,4639.9,4639.6,1.654]
[1757786052246,2.26238102,4640.0,4639.8,3.59]
[1757786052534,0.2998,4639.9,4639.8,3.59]
[1757786052902,2.26238102,4640.0,4639.8,3.59]
[1757786053502,0.1072,4640.0,4639.8,3.59]
[1757786053903,0.2998,4639.9,4639.8,3.59]
[1757786054108,2.45501886,4639.9,4639.8,3.59]
[1757786055215,0.2998,4639.9,4639.8,3.59]
[1757786055810,0.1072,4640.0,4639.8,3.59]
[1757786056956,0.1072,4640.0,4639.9,0.3086]
[1757786057159,0.1072,4640.0,4639.9,3.8966]
[1757786057777,2.26237241,4640.0,4639.9,3.588]
[1757786058631,0.3945,4640.0,4639.6,2.0859]
[1757786058860,0.3945,4640.0,4639.7,3.588]
[1757786059461,0.1072,4640.0,4639.7,4.0199]
[1757786060214,2.26237501,4640.0,4639.7,4.0199]
[1757786060333,2.26237501,4640.0,4639.8,3.587]
[1757786061558,2.15521886,4639.9,4639.8,3.587]
[1757786062862,2.155266,4639.8,4639.6,1.654]
[1757786063063,2.15530207,4639.8,4639.7,3.587]
[1757786063363,0.2873,4639.8,4639.7,3.587]
[1757786063985,2.1552268,4639.9,4639.7,3.587]
[1757786064135,2.15526531,4639.8,4639.7,3.587]
[1757786065278,2.15526531,4639.8,4639.6,1.654]
[1757786065478,2.15526531,4639.8,4639.7,3.586]
[1757786067895,0.1072,4640.0,4639.7,3.586]
[1757786068092,0.1072,4640.0,4639.7,3.8946]
[1757786068278,2.1552278,4639.9,4639.7,4.3265]
[1757786068593,2.26237249,4640.0,4639.7,4.3265]
[1757786069600,0.1072,4640.0,4639.7,4.3265]
[1757786069763,2.15522161,4639.9,4639.7,4.3265]
[1757786069962,2.15522161,4639.9,4639.7,0.7405]
[1757786070162,2.15522161,4639.9,4639.8,3.585]
[1757786070870,2.26437925,4640.0,4639.8,4.379]
[1757786071070,0.1092,4640.0,4639.9,0.454]
[1757786071394,0.1092,4640.0,4639.9,1.248]
[1757786071695,0.1092,4640.0,4639.9,0.7668]
[1757786072065,0.1092,4640.0,4639.9,0.3128]
[1757786072501,2.26437241,4640.0,4639.9,0.3128]
[1757786074295,0.1092,4640.0,4639.9,0.3128]
[1757786074810,2.26437241,4640.0,4639.9,0.3128]
[1757786075095,0.1092,4640.0,4639.9,0.3128]
[1757786075309,2.26437241,4640.0,4639.9,0.3128]
[1757786075917,0.1092,4640.0,4639.9,0.3128]
[1757786076778,0.1092,4640.0,4639.8,3.585]
[1757786076779,2.15521886,4639.9,4639.8,3.585]
[1757786076989,2.45231886,4639.9,4639.8,3.585]
[1757786081301,2.15528339,4639.8,4639.6,1.654]
[1757786081506,2.15528339,4639.8,4639.7,3.582]
[1757786081702,2.45238339,4639.8,4639.7,3.582]
[1757786082612,2.45238339,4639.8,4638.8,1.655]
[1757786082613,0.1072,4639.7,4638.8,1.655]
[1757786082822,0.2971,4638.9,4638.8,1.655]
[1757786082993,0.4043,4638.9,4638.8,5.238]
[1757786083192,2.55998345,4638.9,4638.8,5.238]
[1757786083930,2.55998345,4638.9,4638.8,3.584]
[1757786084299,3.46428345,4638.9,4638.8,3.584]
[1757786084507,0.4043,4638.9,4638.8,3.584]
[1757786085106,0.4043,4638.9,4638.8,0.001]
[1757786085317,0.4043,4638.9,4638.8,3.585]
[1757786085904,0.1072,4638.9,4638.8,3.585]
[1757786086240,0.1072,4638.9,4638.8,3.8905]
[1757786090854,0.1072,4638.9,4638.8,3.585]
[1757786091059,0.1072,4638.9,4638.8,3.8897]
[1757786093374,0.1072,4638.9,4638.8,3.585]
[1757786094692,0.3939,4638.9,4638.8,3.585]
[1757786099075,2.54958345,4638.9,4638.8,3.585]
[1757786099398,3.00378345,4638.9,4638.8,3.583]
[1757786099596,0.8481,4638.9,4638.8,3.583]
[1757786099765,0.3939,4638.9,4638.8,3.583]
[1757786099960,2.54958345,4638.9,4638.8,3.583]
[1757786100696,2.54958345,4638.9,4638.8,0.001]
[1757786104109,3.45878345,4638.9,4638.8,0.001]
[1757786104282,4.02022338,4638.9,4638.8,0.001]
[1757786104901,3.11102338,4638.9,4638.8,0.001]
[1757786105072,4.02022338,4638.9,4638.8,0.001]
[1757786106106,14.62222338,4638.9,4638.8,0.001]
[1757786106272,14.62422338,4638.9,4638.8,0.001]
[1757786106676,14.71048707,4638.9,4638.8,0.001]
[1757786116450,16.36448707,4638.9,4638.8,0.001]
[1757786117159,17.65748707,4638.9,4638.8,0.001]
[1757786118347,20.67117513,4638.9,4638.8,0.001]
[1757786118819,20.87267358,4638.9,4638.8,0.001]
[1757786120936,23.14167358,4638.9,4638.8,0.001]
[1757786123848,23.93367358,4638.9,4638.8,0.001]
[1757786124040,27.93357306,4638.9,4638.8,0.001]
[1757786124931,25.66457306,4638.9,4638.8,0.001]
[1757786126356,5.15600879,4638.2,4638.1,1e-08]
[1757786126556,16.61950125,4638.2,4638.1,1e-08]
[1757786126755,17.84640125,4638.2,4638.1,1e-08]
[1757786126925,19.13940125,4638.2,4638.1,1e-08]
[1757786127253,19.22568802,4638.2,4638.1,1e-08]
[1757786131820,18.74968802,4638.2,4638.1,1e-08]
[1757786132025,17.99878802,4638.2,4638.1,0.28710001]
[1757786132448,18.11950944,4638.2,4638.1,0.28710001]
[1757786133030,18.11950944,4638.2,4638.1,1e-08]
[1757786134753,18.42080944,4638.2,4638.1,1e-08]
[1757786135464,18.62206907,4638.2,4638.1,1e-08]
[1757786138983,18.62206881,4638.2,4638.1,1e-08]
[1757786140565,14.73776881,4638.2,4638.1,0.28710001]
[1757786140868,18.32076881,4638.2,4638.1,1.18650001]
[1757786141731,18.32276881,4638.2,4638.1,1.18650001]
[1757786142145,13.44676881,4638.2,4638.1,1.18650001]
[1757786142348,10.605,4638.2,4638.1,1.18650001]
[1757786142547,12.76100879,4638.2,4638.1,1.18650001]
[1757786149404,9.17800879,4638.2,4638.1,1.18650001]
[1757786149703,10.605,4638.2,4638.1,1.18650001]
[1757786149997,12.76100879,4638.2,4638.1,1.18650001]
[1757786151593,9.17800879,4638.2,4638.1,1.18650001]
[1757786151802,12.76100879,4638.2,4638.1,1.18650001]
[1757786153702,9.17800879,4638.2,4638.1,1.18650001]
[1757786154106,7.022,4638.2,4638.1,1.18650001]
[1757786154307,10.605,4638.2,4638.1,1.18650001]
[1757786154471,9.17800879,4638.2,4638.1,1.18650001]
[1757786154675,7.022,4638.2,4638.1,1.18650001]
[1757786155213,9.17800879,4638.2,4638.1,1.18650001]
[1757786155399,7.022,4638.2,4638.1,1.18650001]
[1757786161215,9.17800879,4638.2,4638.1,1.18650001]
[1757786161424,9.17800879,4638.2,4638.1,0.75770001]
[1757786161582,7.022,4638.2,4638.1,1.23050001]
[1757786164921,7.022,4638.2,4638.1,0.75770001]
[1757786165093,7.022,4638.2,4638.1,1.23050001]
[1757786167317,7.022,4638.2,4638.1,1.35580621]
[1757786167899,7.022,4638.2,4638.1,1.37736676]
[1757786169224,7.022,4638.2,4638.1,1.35580621]
[1757786169426,7.022,4638.2,4638.1,1.23050001]
[1757786169628,7.022,4638.2,4638.1,0.28710001]
[1757786170202,9.91530879,4638.2,4638.1,1e-08]
[1757786170430,10.39420879,4638.2,4638.1,1e-08]
[1757786170638,8.2382,4638.2,4638.1,1e-08]
[1757786170929,10.39420879,4638.2,4638.1,1e-08]
[1757786171329,15.5894218,4638.2,4638.1,1e-08]
[1757786173253,15.71043751,4638.2,4638.1,1e-08]
[1757786177668,15.5894218,4638.2,4638.1,1e-08]
[1757786179569,15.71040513,4638.2,4638.1,1e-08]
[1757786179938,18.98931482,4638.2,4638.1,1e-08]
[1757786180172,18.86833149,4638.2,4638.1,1e-08]
[1757786183057,15.5894218,4638.2,4638.1,1e-08]
[1757786183245,14.6590218,4638.2,4638.1,1e-08]
[1757786187370,14.77998586,4638.2,4638.1,1e-08]
[1757786189380,14.77997925,4638.2,4638.1,1e-08]
[1757786190284,15.43147271,4638.2,4638.1,1e-08]
[1757786190579,14.98157271,4638.2,4638.1,1e-08]
[1757786193286,14.98156507,4638.2,4638.1,1e-08]
[1757786196489,15.47346507,4638.2,4638.1,1e-08]
[1757786196762,15.92336507,4638.2,4638.1,1e-08]
[1757786196967,15.43146507,4638.2,4638.1,1e-08]
[1757786197469,14.98156507,4638.2,4638.1,1e-08]
[1757786199189,23.49627476,4638.2,4638.1,1e-08]
[1757786199377,23.58256525,4638.2,4638.1,1e-08]
[1757786200391,20.30365556,4638.2,4638.1,1e-08]
[1757786203697,19.36185556,4638.2,4638.1,1e-08]
[1757786210991,19.82075556,4638.2,4638.1,1e-08]
[1757786211167,19.83075556,4638.2,4638.1,1e-08]
[1757786211370,19.36185556,4638.2,4638.1,1e-08]
[1757786212116,19.36185556,4638.2,4638.1,0.76310001]
[1757786212117,15.49405556,4638.2,4638.1,0.76310001]
[1757786212273,19.07605556,4638.2,4638.1,1.21250001]
[1757786212612,19.07605556,4638.2,4638.1,0.74830001]
[1757786212973,19.07605556,4638.2,4638.1,1e-08]
[1757786213176,20.29385556,4638.2,4638.1,1e-08]
[1757786215003,2.15638073,4637.4,4637.2,0.001]
[1757786215173,5.96199155,4637.4,4637.2,0.001]
[1757786215373,6.082949,4637.4,4637.2,0.001]
[1757786215769,3.45047373,4637.2,4637.1,1e-08]
[1757786216004,17.05247373,4637.2,4637.1,1e-08]
[1757786216208,17.46352544,4637.2,4637.1,1e-08]
[1757786216499,17.86904439,4637.2,4637.1,1e-08]
[1757786217372,5.15652023,4637.1,4636.8,1e-08]
[1757786217573,5.15661325,4636.9,4636.8,1e-08]
[1757786217800,5.56766496,4636.9,4636.8,1e-08]
[1757786218708,6.21500423,4636.9,4636.8,1e-08]
[1757786218879,6.43861505,4636.9,4636.8,1e-08]
[1757786219478,14.38641505,4636.9,4636.8,1e-08]
[1757786220501,15.68041505,4636.9,4636.8,1e-08]
[1757786223814,15.68041505,4636.9,4635.6,0.001]
[1757786223815,2.15717151,4635.7,4635.6,0.001]
[1757786224017,6.17159891,4635.7,4635.6,0.001]
[1757786224195,8.74017151,4635.7,4635.6,0.2999]
[1757786224388,2.15717151,4635.7,4635.6,0.2999]
[1757786224619,5.82649571,4635.7,4635.6,0.7641]
[1757786224825,5.74017151,4635.7,4635.6,0.7641]
[1757786225150,2.15717151,4635.7,4635.6,0.7641]
[1757786225294,5.74017151,4635.7,4635.6,0.7641]
[1757786225941,5.74017151,4635.7,4635.6,1.2135]
[1757786229047,2.15717151,4635.7,4635.6,1.2135]
[1757786229329,2.15717151,4635.7,4635.6,1.33495]
[1757786230211,2.15717151,4635.7,4635.6,1.2135]
[1757786231643,0.64733928,4636.6,4635.6,1.2135]
[1757786231644,1.657,4636.9,4635.6,1.2135]
[1757786231796,2.15692427,4636.3,4635.7,0.93517171]
[1757786232001,2.15692427,4636.3,4636.2,0.2989]
[1757786232201,2.15692427,4636.3,4636.2,1.2125]
[1757786233835,2.15668199,4636.8,4636.2,1.2125]
[1757786234152,2.15668199,4636.8,4636.3,0.9136]
[1757786234153,3.583,4636.7,4636.3,0.9136]
[1757786234453,2.15684582,4636.4,4636.3,0.9136]
[1757786234744,2.15684582,4636.4,4636.3,1.2125]
[1757786236228,2.15679859,4636.6,4636.3,1.2125]
[1757786236444,2.15681286,4636.5,4636.3,0.2989]
[1757786236741,2.15681286,4636.5,4636.4,0.927]
[1757786236956,2.15681286,4636.5,4636.4,1.2387]
[1757786238619,2.156726,4636.7,4636.4,1.2387]
[1757786238620,2.15674856,4636.7,4636.4,1.2387]
[1757786238942,2.15675866,4636.6,4636.5,0.927]
[1757786239136,0.002,4636.9,4636.5,0.12387]
[1757786239360,0.002,4636.9,4636.7,0.3117]
[1757786239515,0.1072,4636.8,4636.7,0.3117]
[1757786239716,0.1072,4636.8,4636.7,1.2387]
[1757786240648,2.26385976,4636.8,4636.7,1.2387]
[1757786241651,0.1072,4636.8,4636.7,1.2387]
[1757786241838,0.1072,4636.8,4636.3,0.4646]
[1757786241839,2.15670627,4636.7,4636.3,0.4646]
[1757786242041,2.15670627,4636.7,4636.6,0.3117]
[1757786242232,2.15670627,4636.7,4636.6,0.7763]
[1757786243724,2.15670627,4636.7,4636.6,0.3117]
[1757786244122,2.26387103,4636.8,4636.6,0.3117]
[1757786244325,2.26387103,4636.8,4636.6,0.7763]
[1757786244532,0.1072,4636.8,4636.6,0.7763]
[1757786244838,2.26387577,4636.8,4636.6,0.7763]
[1757786245757,2.15670627,4636.7,4636.6,0.7763]
[1757786247534,2.15670627,4636.7,4636.6,0.3117]
[1757786247934,2.26586591,4636.8,4636.6,0.3117]
[1757786248263,2.26586591,4636.8,4636.7,0.4646]
[1757786248447,2.26586591,4636.8,4636.7,0.7763]
[1757786248965,2.26586591,4636.8,4636.7,0.3117]
[1757786249764,2.26586591,4636.8,4636.7,0.7763]
[1757786250450,2.15673065,4636.7,4636.4,0.4646]
[1757786250634,0.1072,4636.6,4636.3,3.582]
[1757786251146,0.1072,4636.6,4636.5,0.3117]
[1757786251657,0.1072,4636.6,4636.5,0.7763]
[1757786251857,0.1072,4636.6,4636.5,1.2387]
[1757786252062,0.1072,4636.6,4636.5,1.72292684]
[1757786253644,0.1072,4636.6,4636.5,1.2387]
[1757786255660,0.1072,4636.6,4636.5,0.7763]
[1757786256679,0.1072,4636.6,4636.5,0.3117]
[1757786257473,0.1072,4636.6,4636.5,0.7763]
[1757786260988,0.1072,4636.6,4636.5,4.3583]
[1757786261979,0.1072,4636.6,4636.5,3.8937]
[1757786262793,0.4219,4636.6,4636.4,0.02156845]
[1757786262948,0.4219,4636.6,4636.3,1.655]
[1757786262949,0.4671,4636.5,4636.3,1.655]
[1757786263153,0.4671,4636.5,4636.4,3.582]
[1757786263683,0.4671,4636.5,4636.3,1.655]
[1757786263684,0.7818,4636.5,4636.3,1.655]
[1757786263851,0.3147,4636.5,4636.4,3.582]
[1757786264686,0.1092,4636.6,4636.4,3.582]
[1757786264896,2.26595589,4636.6,4636.4,3.582]
[1757786265061,2.15684582,4636.4,4636.3,1.655]
[1757786265252,3.43304582,4636.4,4636.3,5.237]
[1757786266061,2.15695594,4636.2,4636.0,0.001]
[1757786266267,2.15693887,4636.2,4636.1,3.582]
[1757786266466,2.90993887,4636.2,4636.1,3.582]
[1757786267281,2.90993887,4636.2,4636.0,0.001]
[1757786267611,2.70068539,4636.1,4636.0,0.001]
[1757786267817,2.70068539,4636.1,4636.0,3.583]
[1757786268019,2.58068539,4636.1,4636.0,0.001]
[1757786268222,14.20193486,4636.1,4636.0,0.001]
[1757786269718,14.3230741,4636.1,4636.0,0.001]
[1757786271397,14.32307458,4636.1,4636.0,0.001]
[1757786271884,17.90507458,4636.1,4636.0,0.001]
[1757786272079,17.78393486,4636.1,4636.0,0.001]
[1757786273824,17.87025626,4636.1,4636.0,0.001]
[1757786274319,14.59126702,4636.1,4636.0,0.001]
[1757786275291,14.71214606,4636.1,4636.0,0.001]
[1757786277322,14.59126702,4636.1,4636.0,0.001]
[1757786278929,14.71201479,4636.1,4636.0,0.001]